fUST/lending_fUST_20260130
["ID","MTS","AMOUNT","RATE_DAILY","PERIOD"]
[404010139,1769715256328,-10000.01,8.872e-05,2]
[404010140,1769715310648,414.0,0.00034747,120]
[404010141,1769715312481,461.67526834,0.00034747,120]
[404010142,1769715588199,-514.84311562,8.77e-05,2]
[404010143,1769715603874,-300.0,8.868e-05,2]
[404010144,1769715603903,-300.0,8.868e-05,2]
[404010145,1769715603942,-300.0,8.868e-05,2]
[404010146,1769715603970,-300.0,8.868e-05,2]
[404010147,1769715604613,544.0,8.868e-05,2]
[404010148,1769715608047,290.0,0.0003474,120]
[404010149,1769715608222,151.0,0.0003474,120]
[404010150,1769715608316,250.0,0.0003474,120]
[404010151,1769715608351,414.0,0.0003474,120]
[404010152,1769715608389,500.0,0.0003474,120]
[404010153,1769715608429,151.0,0.0003474,120]
[404010154,1769715609955,1200.0,8.868e-05,2]
[404010155,1769715610229,461.67526834,0.0003474,120]
[404010156,1769715610314,151.0,0.0003474,120]
[404010157,1769715610369,168.3888056,0.0003474,120]
[404010158,1769715610401,557.5788265,0.0003474,120]
[404010159,1769715611150,151.0,0.0003474,120]
[404010160,1769715611277,250.0,0.0003474,120]
[404010161,1769715611424,151.0,0.0003474,120]
[404010162,1769715611693,151.0,0.0003474,120]
[404010163,1769715612422,151.0,0.0003474,120]
[404010164,1769715613533,168.3888056,0.0003474,120]
[404010165,1769715614144,160.0,0.0003474,120]
[404010166,1769715614509,250.0,0.0003474,120]
[404010167,1769715616418,500.0,0.0003474,120]
[404010168,1769715616593,151.0,0.0003474,120]
[404010169,1769715616625,250.0,0.0003474,120]
[404010170,1769715618779,500.0,0.0003474,120]
[404010171,1769715618942,151.0,0.0003474,120]
[404010172,1769715619085,250.0,0.0003474,120]
[404010173,1769715619350,-473.00995664,8.869e-05,2]
[404010174,1769715619379,-500.0,8.869e-05,2]
[404010175,1769715619406,-581.92026226,8.869e-05,2]
[404010176,1769715619434,-500.0,8.869e-05,2]
[404010177,1769715619463,-500.0,8.869e-05,2]
[404010178,1769715619492,-500.0,8.869e-05,2]
[404010179,1769715619522,-500.0,8.869e-05,2]
[404010180,1769715619551,-541.84704065,8.869e-05,2]
[404010181,1769715619580,-500.0,8.869e-05,2]
[404010182,1769715619609,-306.4554809,8.869e-05,2]
[404010183,1769715619733,-193.5445191,8.869e-05,2]
[404010184,1769715619763,-500.0,8.869e-05,2]
[404010185,1769715619792,-500.0,8.869e-05,2]
[404010186,1769715619822,-500.0,8.869e-05,2]
[404010187,1769715619855,-500.0,8.869e-05,2]
[404010188,1769715619885,-500.0,8.869e-05,2]
[404010189,1769715619917,-500.0,8.869e-05,2]
[404010190,1769715619947,-500.0,8.869e-05,2]
[404010191,1769715619979,-500.0,8.869e-05,2]
[404010192,1769715620014,-500.0,8.869e-05,2]
[404010193,1769715620042,-112.9209618,8.869e-05,2]
[404010194,1769715620170,-387.0790382,8.869e-05,2]
[404010195,1769715620200,-500.0,8.869e-05,2]
[404010196,1769715620231,-500.0,8.869e-05,2]
[404010197,1769715620260,-500.0,8.869e-05,2]
[404010198,1769715620288,-500.0,8.869e-05,2]
[404010199,1769715620314,-500.0,8.869e-05,2]
[404010200,1769715620342,-500.0,8.869e-05,2]
[404010201,1769715620371,-538.60699042,8.869e-05,2]
[404010202,1769715620399,-500.0,8.869e-05,2]
[404010203,1769715620427,-500.0,8.869e-05,2]
[404010204,1769715620512,-500.0,8.869e-05,2]
[404010205,1769715620540,-500.0,8.869e-05,2]
[404010206,1769715620569,-500.0,8.869e-05,2]
[404010207,1769715620597,-638.99330461,8.869e-05,2]
[404010208,1769715620741,-500.0,8.869e-05,2]
[404010209,1769715620770,-500.0,8.869e-05,2]
[404010210,1769715620798,-500.0,8.869e-05,2]
[404010211,1769715620832,-500.0,8.869e-05,2]
[404010212,1769715620861,-500.0,8.869e-05,2]
[404010213,1769715620891,-222.02339078,8.869e-05,2]
[404010214,1769715621088,-277.97660922,8.869e-05,2]
[404010215,1769715621117,-500.0,8.869e-05,2]
[404010216,1769715621146,-500.0,8.869e-05,2]
[404010217,1769715621175,-500.0,8.869e-05,2]
[404010218,1769715621202,-500.0,8.869e-05,2]
[404010219,1769715621234,-500.0,8.869e-05,2]
[404010220,1769715622305,151.0,0.0003474,120]
[404010221,1769715624126,151.0,0.0003474,120]
[404010222,1769715624280,168.3888056,0.0003474,120]
[404010223,1769715625455,174.34186986,0.0003474,120]
[404010224,1769715631325,250.0,0.0003474,120]
[404010225,1769715634969,-262.12890077,8.916e-05,2]
[404010226,1769715639147,1000.0,0.0003474,120]
[404010227,1769715641099,1000.0,0.0003474,120]
[404010228,1769715650368,-482.21744098,8.961e-05,2]
[404010229,1769715667428,-300.0,8.961e-05,2]
[404010230,1769715683185,-9305.09514993,8.962e-05,2]
[404010231,1769715683274,-10000.01,8.962e-05,2]
[404010232,1769715683426,-10000.01,8.962e-05,2]
[404010233,1769715683552,-10000.01,8.962e-05,2]
[404010234,1769715683690,-10000.01,8.962e-05,2]
[404010235,1769715683831,-10000.01,8.962e-05,2]
[404010236,1769715683935,-10000.01,8.962e-05,2]
[404010237,1769715684055,-10000.01,8.962e-05,2]
[404010238,1769715684176,-10000.01,8.962e-05,2]
[404010239,1769715684300,-10000.01,8.962e-05,2]
[404010240,1769715692170,-10000.01,8.962e-05,2]
[404010241,1769715692287,-10000.01,8.962e-05,2]
[404010242,1769715692413,-10000.01,8.962e-05,2]
[404010243,1769715692516,-10000.01,8.962e-05,2]
[404010244,1769715692847,-10000.01,8.962e-05,2]
[404010245,1769715692889,-10000.01,8.962e-05,2]
[404010246,1769715693022,-10000.01,8.962e-05,2]
[404010247,1769715693127,-10000.01,8.962e-05,2]
[404010248,1769715693248,-10000.01,8.962e-05,2]
[404010249,1769715693407,-10000.01,8.962e-05,2]
[404010250,1769715707978,-178.78731552,8.783e-05,2]
[404010251,1769715708006,-451.685,8.783e-05,2]
[404010252,1769715708053,-8739.06536896,8.962e-05,2]
[404010253,1769715708081,-10000.01,8.962e-05,2]
[404010254,1769715708186,-10000.01,8.962e-05,2]
[404010255,1769715708304,-10000.01,8.962e-05,2]
[404010256,1769715708510,-10000.01,8.962e-05,2]
[404010257,1769715708557,-10000.01,8.962e-05,2]
[404010258,1769715708676,-10000.01,8.962e-05,2]
[404010259,1769715708792,-10000.01,8.962e-05,2]
[404010260,1769715708920,-10000.01,8.962e-05,2]
[404010261,1769715709035,-10000.01,8.962e-05,2]
[404010262,1769715713826,-10000.01,8.962e-05,2]
[404010263,1769715713974,-10000.01,8.962e-05,2]
[404010264,1769715714072,-10000.01,8.962e-05,2]
[404010265,1769715714190,-10000.01,8.962e-05,2]
[404010266,1769715720081,-10000.01,8.962e-05,2]
[404010267,1769715720184,-10000.01,8.962e-05,2]
[404010268,1769715720324,-10000.01,8.962e-05,2]
[404010269,1769715720454,-10000.01,8.962e-05,2]
[404010270,1769715759909,-473.3982611,8.596e-05,2]
[404010271,1769715763354,-290.88326416,8.596e-05,2]
[404010272,1769715765636,-343.77623692,8.596e-05,2]
[404010273,1769715767872,-151.80242089,8.596e-05,2]
[404010274,1769715770060,-300.0,8.596e-05,2]
[404010275,1769715894785,-170.28303046,8.596e-05,2]
[404010276,1769715913685,-73.46329733,8.596e-05,2]
[404010277,1769715914443,-289.49398879,8.683e-05,2]
[404010278,1769715916017,-304.54,8.683e-05,2]
[404010279,1769715919399,-205.05180049,8.683e-05,2]
[404010280,1769715923476,5000.0,8.596e-05,2]
[404010281,1769715930005,-1004.52072158,8.683e-05,2]
[404010282,1769715932548,5000.0,8.683e-05,2]
[404010283,1769715945117,-1170.0,8.769e-05,2]
[404010284,1769715948381,5000.0,8.769e-05,2]
[404010285,1769715956820,2660.01,8.769e-05,2]
[404010286,1769715966530,-2339.99,8.769e-05,2]
[404010287,1769715966559,-300.0,8.769e-05,2]
[404010288,1769715972700,4720.03,8.769e-05,2]
[404010289,1769715972725,279.97,8.769e-05,2]
[404010290,1769715980826,5000.0,8.769e-05,2]
[404010292,1769716015469,-300.0,8.594e-05,2]
[404010293,1769716017064,-194.02159955,8.594e-05,2]
[404010294,1769716021115,-428.31085993,8.594e-05,2]
[404010295,1769716023297,-448.21919395,8.594e-05,2]
[404010296,1769716025620,-169.22917765,8.594e-05,2]
[404010297,1769716027300,-179.9334771,8.594e-05,2]
[404010298,1769716028983,-374.9877516,8.594e-05,2]
[404010303,1769716035976,-270.91002487,8.594e-05,2]
[404010315,1769716044807,475.0,0.00029,120]
[404010316,1769716045204,475.0,0.00029,120]
[404010317,1769716045495,-33.95132663,8.594e-05,2]
[404010318,1769716045525,-2399.56341128,8.681e-05,2]
[404010319,1769716045552,-300.0,8.768e-05,2]
[404010320,1769716050030,4532.98052418,8.769e-05,2]
[404010321,1769716054941,-467.01947582,8.769e-05,2]
[404010322,1769716065595,5000.0,8.769e-05,2]
[404010323,1769716104828,-334.15116393,8.594e-05,2]
[404010324,1769716108472,-211.95688269,8.594e-05,2]
[404010325,1769716110684,-288.04311731,8.594e-05,2]
[404010326,1769716112350,-183.2402496,8.594e-05,2]
[404010327,1769716114494,-217.98082238,8.594e-05,2]
[404010328,1769716116622,-200.03229707,8.594e-05,2]
[404010329,1769716119376,-228.98235327,8.594e-05,2]
[404010330,1769716121068,-239.26009702,8.594e-05,2]
[404010331,1769716123654,-191.73381266,8.594e-05,2]
[404010366,1769716163023,3435.264429,0.0003474,120]
[404010369,1769716209803,-304.18261535,8.594e-05,2]
[404010370,1769716209824,-92.64731047,8.594e-05,2]
[404010371,1769716211345,-367.27530584,8.594e-05,2]
[404010395,1769716231805,-80.07738369,8.594e-05,2]
[404010396,1769716231815,-2399.56341128,8.681e-05,2]
[404010397,1769716231824,-300.0,8.768e-05,2]
[404010398,1769716231834,-300.0,8.769e-05,2]
[404010399,1769716231843,-300.0,8.769e-05,2]
[404010400,1769716231853,-256.88632276,8.769e-05,2]
[404010401,1769716231862,-24974.83370206,8.77e-05,2]
[404010402,1769716231874,-14359.1476,8.77e-05,2]
[404010403,1769716231886,-10666.01869794,8.77e-05,2]
[404010404,1769716231895,-337.55220868,8.77e-05,2]
[404010405,1769716231905,-559.84522116,8.77e-05,2]
[404010406,1769716231914,-435.38560072,8.77e-05,2]
[404010407,1769716231924,-500.0,8.77e-05,2]
[404010408,1769716231934,-500.0,8.77e-05,2]
[404010409,1769716231944,-404.3325894,8.77e-05,2]
[404010410,1769716231954,-140983.6737512,8.771e-05,2]
[404010411,1769716231966,-925.31532247,8.771e-05,2]
[404010493,1769716240374,-3e-08,8.771e-05,2]
[404010849,1769716244184,-14559.44255935,8.771e-05,2]
[404010865,1769716246137,-6923.93625433,8.771e-05,2]
[404010867,1769716246149,-1532.07498112,8.771e-05,2]
[404010873,1769716246243,-1027.679062,8.771e-05,2]
[404010879,1769716248720,-2807.04947582,8.771e-05,2]
[404010880,1769716251987,-10000.01,8.683e-05,2]
[404010881,1769716255123,-793.32620844,8.683e-05,2]
[404010882,1769716270469,-300.0,8.77e-05,2]
[404010883,1769716277102,404.65,8.7e-05,2]
[404010884,1769716286332,-258.36497729,8.77e-05,2]
[404010885,1769716295784,1531.28253876,8.77e-05,2]
[404010886,1769716301609,-8064.07746124,8.771e-05,2]
[404010887,1769716301849,-10000.01,8.771e-05,2]
[404010888,1769716301885,-10000.01,8.771e-05,2]
[404010889,1769716301909,-10000.01,8.771e-05,2]
[404010890,1769716302024,-10000.01,8.771e-05,2]
[404010891,1769716302139,-10000.01,8.771e-05,2]
[404010892,1769716302241,-10000.01,8.771e-05,2]
[404010893,1769716307814,-2670.0710173,8.77e-05,2]
[404010894,1769716307856,-4659.8679654,8.771e-05,2]
[404010895,1769716308060,-10000.01,8.771e-05,2]
[404010896,1769716308155,-10000.01,8.771e-05,2]
[404010897,1769716308395,-10000.01,8.771e-05,2]
[404010898,1769716308409,-10000.01,8.771e-05,2]
[404010899,1769716308489,-10000.01,8.771e-05,2]
[404010900,1769716308633,-10000.01,8.771e-05,2]
[404010901,1769716408219,-236.28654608,8.67e-05,2]
[404010902,1769716408249,-240.4,8.67e-05,2]
[404010903,1769716419838,-300.0,8.67e-05,2]
[404010904,1769716419863,-301.86168225,8.671e-05,2]
[404010905,1769716421935,-631.42467637,8.671e-05,2]
[404010906,1769716422066,5000.0,8.67e-05,2]
[404010907,1769716423457,-297.8959742,8.671e-05,2]
[404010908,1769716423817,-5000.01,8.671e-05,2]
[404010909,1769716423902,-10000.01,8.671e-05,2]
[404010910,1769716426896,-10000.01,8.671e-05,2]
[404010911,1769716427009,-10000.01,8.671e-05,2]
[404010912,1769716449822,-247.78317058,8.584e-05,2]
[404010913,1769716454341,-282.82862986,8.584e-05,2]
[404010914,1769716457060,-177.52956342,8.584e-05,2]
[404010915,1769716461188,-174.89590963,8.584e-05,2]
[404010916,1769716463285,-414.83038046,8.584e-05,2]
[404010917,1769716466129,-179.99131428,8.584e-05,2]
[404010918,1769716468987,-200.0,8.584e-05,2]
[404010919,1769716473309,-216.64971271,8.584e-05,2]
[404010920,1769716475623,-319.49952583,8.584e-05,2]
[404010921,1769716478186,-368.51990683,8.584e-05,2]
[404010922,1769716480462,-183.35028729,8.584e-05,2]
[404010923,1769716482618,-300.0,8.583e-05,2]
[404010924,1769716485087,-175.21079795,8.583e-05,2]
[404010925,1769716487612,-24.78920205,8.583e-05,2]
[404010926,1769716487636,-128.01308022,8.583e-05,2]
[404010927,1769716493066,-245.66018267,8.583e-05,2]
[404010928,1769716496828,-126.32673711,8.583e-05,2]
[404010929,1769716496850,-31.48501063,8.584e-05,2]
[404010930,1769716499180,-196.52806959,8.584e-05,2]
[404010931,1769716502641,-283.05144337,8.583e-05,2]
[404010932,1769716504800,-16.94855663,8.583e-05,2]
[404010933,1769716504825,-305.52187995,8.584e-05,2]
[404010934,1769716507013,-343.38365008,8.583e-05,2]
[404010935,1769716511321,-391.7614078,8.583e-05,2]
[404010936,1769716513581,-279.22259643,8.583e-05,2]
[404010937,1769716520886,-180.11046574,8.497e-05,2]
[404010938,1769716570365,-271.82427108,7.812e-05,2]
[404010939,1769716572030,-252.39719984,7.812e-05,2]
[404010940,1769716573738,-154.54,7.812e-05,2]
[404010941,1769716575400,-241.67694838,7.812e-05,2]
[404010942,1769716577499,-152.15411431,7.812e-05,2]
[404010943,1769716579020,-152.63050372,7.812e-05,2]
[404010944,1769716580544,-272.54134027,7.812e-05,2]
[404010945,1769716582105,-622.86830244,7.812e-05,2]
[404010946,1769716584713,-284.31209463,7.812e-05,2]
[404010947,1769716586293,-357.68759965,7.812e-05,2]
[404010948,1769716593112,-177.13169756,7.812e-05,2]
[404010949,1769716594609,-283.33788778,7.812e-05,2]
[404010950,1769716597229,-188.23056669,7.812e-05,2]
[404010951,1769716601772,-252.00030572,7.812e-05,2]
[404010952,1769716603440,-253.20621505,7.812e-05,2]
[404010953,1769716605108,-761.03147338,7.812e-05,2]
[404010954,1769716607493,-307.315714,7.812e-05,2]
[404010955,1769716609491,-197.38282009,7.812e-05,2]
[404010956,1769716612428,-198.0,7.812e-05,2]
[404010957,1769716614718,-335.27133247,7.812e-05,2]
[404010958,1769716617035,-596.49243369,7.812e-05,2]
[404010959,1769716618675,-169.67213584,7.812e-05,2]
[404010960,1769716620329,-322.77325592,7.812e-05,2]
[404010961,1769716622029,-225.54373952,7.812e-05,2]
[404010962,1769716623677,-188.7399709,7.811e-05,2]
[404010963,1769716625203,-111.2600291,7.811e-05,2]
[404010964,1769716625225,-1178.86807847,7.812e-05,2]
[404010965,1769716629825,-400.32013963,7.812e-05,2]
[404010966,1769716633808,-199.67986037,7.812e-05,2]
[404010967,1769716638501,-279.42094264,7.812e-05,2]
[404010968,1769716640033,-332.89401969,7.812e-05,2]
[404010969,1769716642131,-500.0,7.734e-05,2]
[404010971,1769716876835,-1506.83692958,7.279e-05,2]
[404010972,1769716882942,5000.0,7.279e-05,2]
[404010973,1769716908772,-1506.83692958,7.279e-05,2]
[404010974,1769716915346,2575.17519942,7.279e-05,2]
[404010975,1769716923711,-286.03173669,7.316e-05,2]
[404010976,1769716931316,5000.0,7.316e-05,2]
[404010977,1769716955140,-803.72109438,7.279e-05,2]
[404010978,1769716955169,-279.72109438,7.353e-05,2]
[404010979,1769716955198,-524.0,7.353e-05,2]
[404010980,1769716970656,-703.1158352,7.427e-05,2]
[404010981,1769716986388,-5000.0,7.533e-05,2]
[404010982,1769717000236,0.01,7.533e-05,2]
[404010983,1769717000259,4999.99,7.533e-05,2]
[404010984,1769717002259,-300.0,7.608e-05,2]
[404010985,1769717002289,-300.0,7.608e-05,2]
[404010986,1769717016248,5000.0,7.608e-05,2]
[404010987,1769717020956,-0.01,7.609e-05,2]
[404010988,1769717021071,-0.02,7.609e-05,2]
[404010989,1769717021194,-0.04,7.609e-05,2]
[404010990,1769717021251,-7424.71480058,7.609e-05,2]
[404010991,1769717021306,-2575.21519942,7.609e-05,2]
[404010992,1769717024311,4849.57960116,7.609e-05,2]
[404010993,1769717024332,150.42039884,7.609e-05,2]
[404010994,1769717039676,-1200.0,7.732e-05,2]
[404010995,1769717039829,369.77584342,7.609e-05,2]
[404010996,1769717047777,5000.0,7.732e-05,2]
[404010997,1769717058473,-294.0,7.733e-05,2]
[404010998,1769717058508,-300.0,7.733e-05,2]
[404010999,1769717058539,-300.0,7.733e-05,2]
[404011000,1769717071525,5000.0,7.733e-05,2]
[404011001,1769717074698,-300.0,7.81e-05,2]
[404011002,1769717090804,-500.0,7.811e-05,2]
[404011003,1769717090831,-179.99131428,7.811e-05,2]
[404011004,1769717090860,-442.98014196,7.811e-05,2]
[404011005,1769717090887,-156.61634992,7.811e-05,2]
[404011006,1769717090919,-270.92002487,7.811e-05,2]
[404011007,1769717090949,-500.0,7.811e-05,2]
[404011008,1769717090978,-500.0,7.811e-05,2]
[404011009,1769717091008,-500.0,7.811e-05,2]
[404011010,1769717091036,-500.0,7.811e-05,2]
[404011011,1769717094376,2898.99433794,7.81e-05,2]
[404011012,1769717094398,2101.00566206,7.81e-05,2]
[404011013,1769717102045,300.0,7.811e-05,2]
[404011014,1769717105757,-9330.25415658,7.812e-05,2]
[404011015,1769717105899,-10000.01,7.812e-05,2]
[404011016,1769717106045,-10000.01,7.812e-05,2]
[404011017,1769717108902,1200.0,7.811e-05,2]
[404011018,1769717111268,-3570.04840688,7.812e-05,2]
[404011019,1769717111451,-1659.91318624,7.812e-05,2]
[404011020,1769717111492,-1200.0,7.812e-05,2]
[404011021,1769717117773,-5000.0,7.812e-05,2]
[404011022,1769717117811,-0.01,7.812e-05,2]
[404011023,1769717117878,-503.96625853,7.812e-05,2]
[404011024,1769717117901,-8992.07748294,7.812e-05,2]
[404011025,1769717130456,-300.0,7.888e-05,2]
[404011026,1769717130487,-300.0,7.888e-05,2]
[404011027,1769717130521,-300.0,7.888e-05,2]
[404011028,1769717130552,-300.0,7.888e-05,2]
[404011029,1769717130583,-300.0,7.888e-05,2]
[404011030,1769717130614,-300.0,7.888e-05,2]
[404011031,1769717130646,-300.0,7.888e-05,2]
[404011032,1769717130676,-300.0,7.888e-05,2]
[404011033,1769717130706,-300.0,7.888e-05,2]
[404011034,1769717130738,-300.0,7.888e-05,2]
[404011035,1769717130772,-300.0,7.888e-05,2]
[404011036,1769717130803,-300.0,7.888e-05,2]
[404011037,1769717130833,-300.0,7.888e-05,2]
[404011038,1769717130863,-300.0,7.888e-05,2]
[404011039,1769717130893,-300.0,7.888e-05,2]
[404011040,1769717130920,-459.633,7.888e-05,2]
[404011041,1769717140852,80.744,7.888e-05,2]
[404011042,1769717140876,4919.256,7.888e-05,2]
[404011043,1769717145920,-600.0,8.045e-05,2]
[404011044,1769717164488,5000.0,8.497e-05,2]
[404011045,1769717187345,5000.0,8.583e-05,2]
[404011046,1769717209713,0.01,8.583e-05,2]
[404011047,1769717209735,4999.99,8.583e-05,2]
[404011048,1769717232456,5000.0,8.583e-05,2]
[404011077,1769717254747,0.02,8.583e-05,2]
[404011078,1769717254768,1424.47554122,8.583e-05,2]
[404011208,1769717403932,540.0,8.583e-05,2]
[404011225,1769717431944,-207.93064547,8.583e-05,2]
[404011226,1769717431955,-294.49164508,8.588e-05,2]
[404011227,1769717431966,-300.0,9.156e-05,2]
[404011228,1769717431976,-300.0,9.999e-05,2]
[404011229,1769717431987,-627.0,9.999e-05,2]
[404011230,1769717431997,-262.05,0.0001,2]
[404011231,1769717432008,-8167.2,0.0001,2]
[404011232,1769717432019,-151.0,0.00010021,2]
[404011233,1769717432029,-151.0,0.00010021,2]
[404011234,1769717432039,-151.0,0.00010021,2]
[404011235,1769717432050,-151.0,0.00010021,2]
[404011236,1769717432060,-151.0,0.00010021,2]
[404011237,1769717432071,-151.0,0.00010021,2]
[404011238,1769717432082,-151.0,0.00010021,2]
[404011239,1769717432092,-151.0,0.00010021,2]
[404011241,1769717432102,-151.0,0.00010021,2]
[404011243,1769717432113,-151.0,0.00010021,2]
[404011245,1769717432124,-151.0,0.00010021,2]
[404011247,1769717432135,-25316.4684253,0.00010027,2]
[404011249,1769717432146,-300.0,0.00010199,2]
[404011251,1769717432158,-300.0,0.00010199,2]
[404011253,1769717432169,-300.0,0.00010199,2]
[404011255,1769717432178,-300.0,0.00010199,2]
[404011256,1769717432188,-300.0,0.00010199,2]
[404011257,1769717432198,-300.0,0.00010199,2]
[404011258,1769717432207,-300.0,0.00010199,2]
[404011259,1769717432393,-300.0,0.00010199,2]
[404011260,1769717432413,-300.0,0.00010199,2]
[404011261,1769717432422,-300.0,0.00010199,2]
[404011262,1769717432432,-300.0,0.00010199,2]
[404011263,1769717432442,-300.0,0.00010199,2]
[404011264,1769717432451,-300.0,0.00010199,2]
[404011265,1769717432461,-300.0,0.00010199,2]
[404011266,1769717432469,-300.0,0.00010199,2]
[404011267,1769717432479,-600.0,0.00010199,2]
[404011268,1769717432488,-262.05,0.000104,2]
[404011269,1769717432497,-347.50014119,0.00010588,2]
[404011270,1769717432506,-262.05,0.000108,2]
[404011271,1769717432516,-420.0,0.00010999,2]
[404011272,1769717432525,-262.05,0.000112,2]
[404011273,1769717432534,-720.0,0.00011219,2]
[404011274,1769717432544,-262.05,0.000116,2]
[404011275,1769717432554,-343.97160006,0.00011816,2]
[404011277,1769717432563,-160.0,0.00011816,2]
[404011278,1769717432572,-160.0,0.00011816,2]
[404011280,1769717432582,-151.0,0.00011816,2]
[404011282,1769717432591,-187.78006525,0.00011816,2]
[404011284,1769717432600,-278.15468107,0.00011816,2]
[404011286,1769717432609,-151.0,0.00011816,2]
[404011288,1769717432619,-194.72792766,0.00011816,2]
[404011290,1769717432629,-151.0,0.00011816,2]
[404011291,1769717432639,-201.93286099,0.00011816,2]
[404011292,1769717432648,-209.40437684,0.00011816,2]
[404011293,1769717432657,-217.15233878,0.00011816,2]
[404011294,1769717432666,-250.0,0.00011816,2]
[404011295,1769717432675,-187.78006525,0.00011816,2]
[404011297,1769717432685,-250.0,0.00011816,2]
[404011298,1769717432694,-225.18697532,0.00011816,2]
[404011299,1769717432703,-250.0,0.00011816,2]
[404011300,1769717432712,-233.51889341,0.00011816,2]
[404011302,1769717432722,-250.0,0.00011816,2]
[404011304,1769717432731,-242.15909246,0.00011816,2]
[404011306,1769717432741,-250.0,0.00011816,2]
[404011307,1769717432750,-251.11897888,0.00011816,2]
[404011308,1769717432760,-260.4103811,0.00011816,2]
[404011309,1769717432769,-250.0,0.00011816,2]
[404011310,1769717432779,-270.0455652,0.00011816,2]
[404011311,1769717432788,-250.0,0.00011816,2]
[404011312,1769717432797,-280.03725112,0.00011816,2]
[404011313,1769717432807,-250.0,0.00011816,2]
[404011314,1769717432816,-290.39862941,0.00011816,2]
[404011315,1769717432825,-213.93175185,0.00011816,2]
[404011316,1769717432835,-301.1433787,0.00011816,2]
[404011317,1769717432845,-158.27,0.00012,10]
[404011318,1769717432855,-587.0,0.00012099,2]
[404011319,1769717432864,-262.05,0.000121,2]
[404011320,1769717432873,-808.13,0.00012329,2]
[404011321,1769717432885,-864.0,0.00012341,2]
[404011322,1769717432895,-204.67695235,0.00012364,2]
[404011323,1769717432904,-262.05,0.000125,2]
[404011324,1769717432914,-400.5086373,0.00012588,2]
[404011325,1769717432923,-635.38,0.00012812,2]
[404011326,1769717432932,-262.05,0.000129,2]
[404011327,1769717432945,-1341.79490645,0.000129,2]
[404011328,1769717432954,-1341.79490645,0.000129,2]
[404011329,1769717432963,-265.13,0.000132,2]
[404011330,1769717432972,-265.13,0.000132,2]
[404011331,1769717432982,-265.13,0.000132,2]
[404011332,1769717432991,-265.13,0.000132,2]
[404011333,1769717433001,-265.13,0.000132,2]
[404011334,1769717433010,-265.13,0.000132,2]
[404011335,1769717433020,-265.13,0.000132,2]
[404011336,1769717433029,-262.04,0.000132,2]
[404011337,1769717433039,-165.40058225,0.00013272,2]
[404011338,1769717433048,-500.0,0.00013273,2]
[404011339,1769717433058,-622.96707627,0.00013273,2]
[404011340,1769717433068,-500.0,0.00013273,2]
[404011341,1769717433077,-514.11733401,0.00013273,2]
[404011342,1769717433090,-500.0,0.00013273,2]
[404011343,1769717433100,-500.0,0.00013273,2]
[404011344,1769717433109,-500.0,0.00013273,2]
[404011345,1769717433119,-500.0,0.00013273,2]
[404011346,1769717433129,-500.0,0.00013273,2]
[404011347,1769717433138,-500.0,0.00013273,2]
[404011348,1769717433148,-500.0,0.00013273,2]
[404011349,1769717433157,-500.0,0.00013273,2]
[404011350,1769717433167,-520.35864209,0.00013273,2]
[404011351,1769717433177,-500.0,0.00013273,2]
[404011352,1769717433186,-500.0,0.00013273,2]
[404011353,1769717433196,-500.0,0.00013273,2]
[404011354,1769717433205,-448.34041549,0.00013273,2]
[404011355,1769717433214,-500.0,0.00013273,2]
[404011356,1769717433224,-500.0,0.00013273,2]
[404011357,1769717433233,-500.0,0.00013273,2]
[404011358,1769717433242,-500.0,0.00013273,2]
[404011359,1769717433251,-500.0,0.00013273,2]
[404011360,1769717433261,-500.0,0.00013273,2]
[404011361,1769717433271,-262.05,0.000133,2]
[404011362,1769717433280,-823.0,0.00013309,2]
[404011363,1769717433290,-1000.0,0.00013575,2]
[404011364,1769717433299,-243.07527185,0.00013664,2]
[404011365,1769717433308,-300.0,0.00013673,2]
[404011366,1769717433318,-500.0,0.00013698,2]
[404011367,1769717433329,-500.0,0.00013698,2]
[404011368,1769717433340,-500.0,0.00013698,2]